[Event "1st Irena Warakomska Memorial"]
[Site "Suwalki"]
[Date "2017.08.13"]
[Round "4"]
[White "Sagar, Shah"]
[Black "Mulet, Piotr"]
[Result "1-0"]
[ECO "A16"]
[WhiteElo "2397"]
[BlackElo "2295"]
[Annotator "ChessBase"]
[PlyCount "107"]
[EventDate "2017.??.??"]
[EventType "swiss"]
[EventCountry "POL"]
[SourceTitle "playchess.com"]
[Source "ChessBase"]
[SourceQuality "1"]
[TimeControl "40/5400+30:1800+30"]

1. c4 Nf6 2. Nc3 d5 3. cxd5 Nxd5 4. g3 g6 5. Bg2 Nb6 6. d3 Bg7 7. Be3 O-O 8. Qd2 Nc6 9. Bxc6 bxc6 10. Bh6 c5 11. Bxg7 Kxg7 12. Nf3 Bb7 13. Qe3 c4 14. Rd1 Bxf3 15. exf3 Qd6 16. dxc4 Nxc4 17. Rxd6 Nxe3 18. Rc6 Nc2+ 19. Kd2 Nd4 20. Rxc7 Rfd8 21. Kc1 Nxf3 22. Rxe7 Rd2 23. Re2 Rad8 24. Rhe1 Rxe2 25. Rxe2 Nxh2 26. Re7 a6 27. Ra7 Rd6 28. Ne4 Rc6+ 29. Kd2 h6 30. b4 g5 31. Nc5 Rf6 32. Ke2 Ng4 33. f3 Ne5 34. Rxa6 Rxf3 35. Nd7 Rf5 36. Ra5 Nc6 37. Rxf5 Nd4+ 38. Kf2 Nxf5 39. a4 h5 40. b5 Nd6 41. b6 Nb7 42. Ne5 Kf6 43. Nc6 Ke6 44. a5 Nxa5 45. Nxa5 Kd7 46. b7 Kc7 47. Nc6 Kxb7 48. Nd8+ Kc7 49. Nxf7 g4 50. Nh6 Kd6 51. Nf5+ Ke5 52. Ng7 h4 53. gxh4 Kf4 54. Nh5+ 1-0

[Event "1st Irena Warakomska Memorial"]
[Site "Suwalki"]
[Date "2017.08.14"]
[Round "5"]
[White "Teclaf, Pawel"]
[Black "Bartel, Marta"]
[Result "1-0"]
[ECO "B57"]
[WhiteElo "2373"]
[BlackElo "2313"]
[Annotator "NA"]
[PlyCount "88"]
[EventDate "2017.??.??"]
[EventType "swiss"]
[EventCountry "POL"]
[SourceTitle "playchess.com"]
[Source "ChessBase"]
[SourceQuality "1"]
[TimeControl "40/5400+30:1800+30"]

1. e4 c5 2. Nf3 Nc6 3. d4 cxd4 4. Nxd4 Nf6 5. Nc3 d6 6. Bc4 Qb6 7. Nb3 e6 8. Bf4 Ne5 9. Be2 Be7 10. Qd2 {B57: Classical Sicilian: Sozin with 6...Qb6} (10. Be3 Qc7 11. f4 Nc6 12. O-O O-O 13. Bf3 a6 14. a4 b6 15. g4 Re8 16. g5 Nd7 17. Bg2 Bb7 18. Rf3 Bf8 {1-0 (42) Palac,M (2578)-Jankovic,A (2564) Marija Bistrica 2011}) 10... a6 11. O-O-O O-O 12. g4 Nexg4 $146 ({Predecessor:} 12... Qc7 13. Bg3 b5 14. g5 b4 15. gxf6 bxc3 16. Qxc3 Qxc3 17. bxc3 gxf6 {1-0 (89) Teclaf,P (2200)-Krzywda,A (2113) Jastrzebia Gora 2015}) 13. Rhg1 Nxf2 14. Be3 N2xe4 15. Nxe4 Nxe4 16. Rxg7+ Kxg7 17. Rg1+ Kh8 18. Bd4+ Qxd4 19. Qxd4+ Nf6 20. Bd3 Rg8 21. Rxg8+ Kxg8 22. Qh4 Kf8 23. Bxh7 Nxh7 24. Qxh7 Bf6 25. Na5 d5 26. Qh6+ Bg7 27. Qh4 Ke8 28. Qg3 Bh6+ 29. Kd1 Bd7 30. Nxb7 Bf8 31. Qc7 Rc8 32. Nd6+ Bxd6 33. Qxd6 Rc6 34. Qb8+ Ke7 35. b3 a5 36. Qh8 Rc8 37. Qg7 Kd6 38. Qxf7 e5 39. h4 Be6 40. Qf2 d4 41. h5 Rh8 42. h6 Ke7 43. Qg3 Kd6 44. Qh4 $18 Kd5 1-0

[Event "1st Irena Warakomska Memorial"]
[Site "Suwalki"]
[Date "2017.08.14"]
[Round "5"]
[White "Plichta, Kamil"]
[Black "Kaczmarek, Aleksander"]
[Result "1-0"]
[ECO "B12"]
[WhiteElo "2341"]
[BlackElo "2368"]
[Annotator "ChessBase"]
[PlyCount "107"]
[EventDate "2017.??.??"]
[EventType "swiss"]
[EventCountry "POL"]
[SourceTitle "playchess.com"]
[Source "ChessBase"]
[SourceQuality "1"]
[TimeControl "40/5400+30:1800+30"]

1. e4 c6 2. d4 d5 3. e5 g6 4. c4 Bg7 5. Nc3 e6 6. Nf3 Ne7 7. Be2 Nd7 8. O-O O-O 9. Bf4 dxc4 10. Bxc4 Nb6 11. Bb3 Nbd5 12. Bg5 h6 13. Bd2 Nxc3 14. bxc3 b6 15. h4 Nf5 16. h5 gxh5 17. Bc2 Bb7 18. Be4 f6 19. exf6 Qxf6 20. Qe2 Qf7 21. Bf4 Kh7 22. g3 Rac8 23. Kg2 c5 24. Rae1 cxd4 25. cxd4 Rce8 26. Rh1 Rg8 27. a4 Bxe4 28. Qxe4 Bf6 29. d5 Qg6 30. dxe6 h4 31. Rhg1 hxg3 32. fxg3 Rc8 33. Kf2 Rgf8 34. Rd1 Be7 35. Rd7 Kg8 36. Re1 Bc5+ 37. Kg2 Be7 38. Re2 Rc3 39. Rxa7 Bc5 40. Rd7 Re3 41. Bxe3 Qxg3+ 42. Kf1 Bxe3 43. Rg2 Bg5 44. Kg1 Be3+ 45. Kh1 Bg5 46. Kg1 Be3+ 47. Kh1 Bg5 48. Qg4 Qxg4 49. Rxg4 Ne3 50. Rg3 Nf1 51. Rh3 Bf4 52. Rh4 Bg3 53. Rg4+ Kh8 54. e7 1-0

[Event "1st Irena Warakomska Memorial"]
[Site "Suwalki"]
[Date "2017.08.14"]
[Round "5"]
[White "Zakrzewski, Marek"]
[Black "Zylka, Stanislaw"]
[Result "0-1"]
[ECO "C45"]
[WhiteElo "2237"]
[BlackElo "2368"]
[Annotator "NA"]
[PlyCount "96"]
[EventDate "2017.??.??"]
[EventType "swiss"]
[EventCountry "POL"]
[SourceTitle "playchess.com"]
[Source "ChessBase"]
[SourceQuality "1"]
[TimeControl "40/5400+30:1800+30"]

1. e4 e5 2. Nf3 Nc6 3. d4 exd4 4. Nxd4 Nf6 5. Nxc6 bxc6 6. e5 Qe7 7. Qe2 Nd5 8. c4 Ba6 9. b3 g6 10. f4 {C45: Scotch Game} (10. g3 Bg7 11. Bb2 O-O 12. Bg2 Rfe8 13. O-O Bxe5 14. Qxe5 Qxe5 15. Bxe5 Rxe5 16. cxd5 Bxf1 17. Kxf1 cxd5 18. Na3 c6 19. Nc2 a5 20. Rd1 Kf8 {½-½ (82) Nepomniachtchi,I (2732)-Ding,L (2783) Khanty-Mansiysk 2017}) 10... g5 11. fxg5 Bg7 12. Bb2 Qxg5 13. Nd2 O-O-O $146 ({Predecessor:} 13... c5 14. Ne4 Qh4+ 15. g3 Qe7 16. Bg2 O-O-O 17. O-O Nb6 {1-0 (30) Kocks,F (2097)-Grehling,M (2190) GER email 2012}) 14. Nf3 Qg6 15. Qd3 Qxd3 16. Bxd3 Nf4 17. O-O-O Nxd3+ 18. Rxd3 Rhg8 19. g3 c5 20. Re1 Bb7 21. Ba3 d6 22. Bb2 Rge8 23. Bc3 d5 24. cxd5 Bxd5 25. Ng5 c4 26. bxc4 Bxc4 27. Rxd8+ Rxd8 28. a3 Bh6 29. h4 Rd3 30. Bd2 Rxa3 31. Re3 Ra1+ 32. Kb2 Ra2+ 33. Kc3 Bxg5 34. hxg5 Be6 35. Bc1 Rg2 36. Kb4 {[#]} (36. Rf3 $17 {keeps fighting.}) 36... c5+ $1 37. Kb5 $2 (37. Kc3) 37... Rc2 38. Ba3 Kb7 39. Ka5 Rc4 40. Rd3 $2 (40. Rf3) 40... Kc7 $2 41. Bb2 $1 Rc2 42. Ba3 Rc4 (42... Kc6 $19 43. Rd6+ Kb7) 43. Bb2 Bd7 $142 44. Ra3 Rb4 45. Bc3 Rb6 46. Ra2 Rb3 47. Ba1 Kb7 48. Rb2 Rb6 0-1

[Event "1st Irena Warakomska Memorial"]
[Site "Suwalki"]
[Date "2017.08.15"]
[Round "6"]
[White "Almasi, Istvan"]
[Black "Zielinski, Wojciech"]
[Result "1-0"]
[ECO "E16"]
[WhiteElo "2408"]
[BlackElo "2105"]
[Annotator "NA"]
[PlyCount "117"]
[EventDate "2017.??.??"]
[EventType "swiss"]
[EventCountry "POL"]
[SourceTitle "playchess.com"]
[Source "ChessBase"]
[SourceQuality "1"]
[TimeControl "40/5400+30:1800+30"]

1. d4 e6 2. c4 Nf6 3. Nf3 b6 4. g3 Bb7 5. Bg2 c5 6. d5 exd5 7. Ng5 {E16: Queen's Indian: 4 g3 Bb7 5 Bg2 Bb4+} Ne4 8. Nxe4 dxe4 9. Nc3 d5 $146 ({Predecessor:} 9... Be7 10. Nxe4 Nc6 11. Bf4 Na5 12. O-O O-O 13. Qc2 Qc8 14. Rad1 Bc6 {1-0 (84) Cheparinov,I (2681)-Ynojosa Aponte,F (2374) Istanbul 2012}) 10. Nxd5 Bxd5 11. Qxd5 Qxd5 12. cxd5 f5 13. Bf4 Kd7 14. Bh3 g6 15. g4 Bd6 16. Bxd6 Kxd6 17. gxf5 Kxd5 18. Rg1 Nc6 19. fxg6 hxg6 20. Rg5+ Kc4 21. Be6+ Kb4 22. a3+ Ka5 23. O-O-O Rad8 24. Bd5 Ne7 25. Bxe4 Rxd1+ 26. Kxd1 Rxh2 27. Ke1 Ka4 28. Bc2+ Kb5 29. Bxg6 Nxg6 30. Rxg6 Kc4 31. Rg3 b5 32. Rc3+ Kd5 33. Rd3+ Ke5 34. Re3+ Kd4 35. Re7 a5 36. f4 b4 37. axb4 axb4 38. f5 Rh1+ 39. Kd2 Rf1 40. b3 Rf2 41. Re8 Rf1 $2 (41... Rg2 $16 {is more resistant.} 42. Rc8 Rf2) 42. e3+ Kd5 43. Ke2 Rh1 44. f6 Rh2+ 45. Kd3 Rf2 46. e4+ $18 Kc6 47. Re6+ Kd7 48. Ra6 Rf3+ 49. Kc4 Rc3+ 50. Kd5 Rxb3 51. Ra7+ Ke8 52. Ke6 Ra3 53. Rb7 Ra6+ 54. Kf5 Ra2 55. e5 Ra1 56. e6 Rf1+ 57. Ke5 Re1+ 58. Kd5 Rd1+ 59. Kc6 {Kd7} 1-0

[Event "1st Irena Warakomska Memorial"]
[Site "Suwalki"]
[Date "2017.08.15"]
[Round "6"]
[White "Kulon, Klaudia"]
[Black "Mulet, Piotr"]
[Result "0-1"]
[ECO "C02"]
[WhiteElo "2359"]
[BlackElo "2295"]
[Annotator "NA"]
[PlyCount "134"]
[EventDate "2017.??.??"]
[EventType "swiss"]
[EventCountry "POL"]
[SourceTitle "playchess.com"]
[Source "ChessBase"]
[SourceQuality "1"]
[TimeControl "40/5400+30:1800+30"]

1. e4 e6 2. d4 d5 3. e5 c5 4. c3 Nc6 5. Nf3 Qb6 6. a3 f6 7. Bd3 fxe5 {C02: French: Advance Variation} 8. dxe5 (8. Nxe5 Nf6 9. O-O Bd6 10. dxc5 Bxc5 11. Qe2 Nxe5 12. Qxe5 O-O 13. Qe2 Kh8 14. b4 Bd6 15. c4 dxc4 16. Bxc4 {1-0 (56) Motylev,A (2649)-Riazantsev,A (2646) Berlin 2015}) 8... Nge7 9. O-O g6 $146 ({Find the theoretical novelty and annotate with similar games:} 9... Ng6 10. Re1 Be7 11. Bg5 O-O 12. Bxg6 hxg6 13. Bxe7 Nxe7 14. b4 cxb4 15. cxb4 {0-1 (22) Mrochen,M (2002)-Cueva,T (1963) Dos Hermanas 2004}) 10. b4 c4 11. Bc2 Bg7 12. Qe2 Qc7 13. Re1 Bd7 14. b5 Nd8 15. a4 Nf7 16. Ba3 Nf5 17. Nbd2 h5 18. Nf1 O-O-O 19. Ne3 Nxe5 20. Ng5 Rde8 21. f4 Ng4 22. Nxg4 hxg4 23. Bxf5 exf5 24. Qd2 Qb6+ 25. Kh1 Rxe1+ 26. Rxe1 g3 27. Nh3 d4 28. Qa2 Qc7 29. cxd4 Re8 30. Rd1 Re3 31. d5 Rb3 32. Rc1 Kb8 33. hxg3 Bf6 34. Ng1 Be8 35. Qe2 Bf7 36. Rxc4 Qd7 37. Bd6+ Qxd6 38. Qc2 Qd7 39. Qxb3 Bxd5 40. Nf3 Qe6 41. Qb4 Bxc4 42. Qf8+ Kc7 43. Qc5+ Kd7 44. Qxa7 Bd5 45. Qf2 Qe4 46. Qb6 Qe6 47. Qf2 Bxf3 48. Qxf3 Qe4 49. Qb3 Bd4 50. Qf7+ Kc8 51. Kh2 {[#]} Qe3 $1 52. Kh3 Qg1 53. Qe6+ Kc7 54. g4 $19 Qe3+ 55. Qxe3 Bxe3 56. a5 Bxf4 57. gxf5 gxf5 58. a6 b6 59. Kh4 Kc8 60. Kh5 Bb8 61. Kg5 f4 62. a7 Bxa7 63. Kxf4 Bb8+ 64. Kf5 Bg3 65. Kg4 Be1 66. Kf4 Kd7 67. g4 Kd6 0-1

[Event "1st Irena Warakomska Memorial"]
[Site "Suwalki"]
[Date "2017.08.15"]
[Round "6"]
[White "Szustakowski, Antoni"]
[Black "Goluch, Piotr"]
[Result "1-0"]
[ECO "B61"]
[WhiteElo "2235"]
[BlackElo "2360"]
[Annotator "NA"]
[PlyCount "97"]
[EventDate "2017.??.??"]
[EventType "swiss"]
[EventCountry "POL"]
[SourceTitle "playchess.com"]
[Source "ChessBase"]
[SourceQuality "1"]
[TimeControl "40/5400+30:1800+30"]

1. e4 c5 2. Nf3 d6 3. d4 cxd4 4. Nxd4 Nf6 5. Nc3 Nc6 6. Bg5 Bd7 7. Qd2 Rc8 8. f4 Nxd4 9. Qxd4 Qa5 10. Be2 {B61: Sicilian: Richter-Rauzer: 6...Bd7 7 Qd2} (10. e5 dxe5 11. fxe5 e6 12. O-O-O Bc6 13. Nb5 Bxb5 14. exf6 Bc6 15. h4 g6 16. Bc4 Bc5 17. Qe5 Bb6 18. Qd6 Bc5 19. Qe5 Bb4 20. Qe3 Qc5 21. Qe2 {½-½ (89) Grischuk,A (2752)-Dreev,A (2710) Apatity 2011}) 10... e5 $146 ({Predecessor:} 10... e6 11. O-O-O Be7 12. Bxf6 gxf6 13. Kb1 a6 14. Rhe1 Qc5 15. Qd2 Rc7 16. Bf3 O-O 17. Re3 {1-0 (35) Djuraev,S (2339)-Uribe,M (2414) Dresden 2008}) 11. Qd3 d5 12. Bxf6 dxe4 13. Qd5 Qxd5 14. Nxd5 Bc6 15. Bxe5 Bxd5 16. O-O-O Bc6 17. Bg4 Ra8 18. Rhe1 Bc5 19. Bf5 Bf2 20. Re2 e3 21. Bxg7 Rg8 22. Bd4 Rxg2 23. Bxe3 Bxe3+ 24. Rxe3+ Kf8 25. Rh3 Re8 26. Rxh7 Ree2 27. h3 Ref2 28. Rh4 Kg7 29. b3 Kf6 30. Bd3 Rh2 31. Rg1 Bg2 32. Rh6+ Ke7 33. Re1+ Kf8 34. f5 Rxh3 35. Rd6 Kg7 36. Rd7 Bc6 37. Rd6 Rh1 38. Rxh1 Bxh1 39. a4 Bc6 40. Kb2 f6 41. a5 a6 42. b4 Bg2 43. Kc3 Rf4 44. Rd4 Rf2 45. Kc4 Kf7 46. Rd7+ Ke8 47. Rh7 Kd8 48. Kc5 Kc8 $18 (48... Rf4 $142 49. Rf7 Rg4 50. Rxf6 Ke8) 49. Rh2 1-0

[Event "1st Irena Warakomska Memorial"]
[Site "Suwalki"]
[Date "2017.08.15"]
[Round "6"]
[White "Kyrychenko, Maryan"]
[Black "Stoma, Pawel"]
[Result "0-1"]
[ECO "B07"]
[WhiteElo "2219"]
[BlackElo "2348"]
[Annotator "NA"]
[PlyCount "176"]
[EventDate "2017.??.??"]
[EventType "swiss"]
[EventCountry "POL"]
[SourceTitle "playchess.com"]
[Source "ChessBase"]
[SourceQuality "1"]
[TimeControl "40/5400+30:1800+30"]

1. e4 d6 2. d4 e5 3. dxe5 dxe5 4. Qxd8+ Kxd8 5. Bc4 Be6 6. Bxe6 fxe6 7. Nc3 Nf6 8. Bg5 Bd6 9. O-O-O Ke7 10. Nge2 Nc6 11. h3 {B07: Pirc Defence: Miscellaneous Systems} (11. f3 a6 12. Kb1 b5 13. Nc1 Rhb8 14. Nd3 a5 15. Ne2 a4 16. Rhe1 Rd8 17. g3 Nb8 18. f4 h6 19. fxe5 hxg5 20. exd6+ cxd6 {½-½ (43) Espinosa Flores,R (2412)-Czebe,A (2468) Beijing 2008}) 11... a6 $146 ({Predecessor:} 11... h6 12. Be3 a6 13. g4 Rad8 14. Rdg1 Kf7 15. h4 b5 16. f3 Nd4 17. Bxd4 exd4 {0-1 (33) Molchanova,T (2315)-Ionescu Brandis,I (2252) Kishinev 2005}) 12. Rhf1 h6 13. Be3 b5 14. a3 Rhb8 15. f4 a5 16. fxe5 Nxe5 17. Bf4 b4 18. Nb1 Ra6 19. Nd4 g5 20. Bh2 Nc4 21. Bxd6+ cxd6 22. Rde1 a4 23. Nd2 Ne5 24. N2f3 bxa3 25. bxa3 Rab6 26. Nxe5 dxe5 27. Nf3 Nxe4 28. Nd2 Nxd2 29. Kxd2 Rb5 30. Re4 Rd8+ 31. Ke3 Rc8 32. Rxa4 Rxc2 33. Ra7+ Kd6 34. Ra6+ Kc5 35. Ke4 Re2+ 36. Kf3 Rbb2 37. Rc1+ Kd5 38. Rd1+ Red2 39. Ra5+ Kd4 40. Ra4+ Kd5 41. Ra5+ Kd6 42. Rxd2+ Rxd2 43. Ra8 Rd4 44. Rd8+ Kc5 45. Re8 Kd5 46. Ke3 Re4+ 47. Kd3 Ra4 48. Rd8+ Kc6 49. Rc8+ Kd6 50. Rd8+ Ke7 51. Rh8 e4+ 52. Ke3 Kf6 53. Rb8 h5 54. Rb4 Rxa3+ 55. Kxe4 h4 56. Rb2 Ra4+ 57. Ke3 {[#]} Kf5 $1 58. Rf2+ Ke5 59. Rb2 Ra3+ 60. Kf2 Kf4 $17 61. Rb4+ Kf5 62. Rb5+ e5 63. Rb4 Ra2+ 64. Kf3 Ra3+ 65. Kf2 e4 66. Rb8 Ra5 67. Ke3 Ra3+ 68. Kf2 Ra2+ 69. Ke3 Rxg2 70. Rf8+ Ke5 71. Re8+ Kf6 72. Rf8+ Kg7 73. Ra8 Rg3+ 74. Kxe4 Rxh3 75. Kf5 Rg3 76. Ra7+ Kh6 77. Ra8 Rf3+ 78. Kg4 Rf4+ 79. Kh3 Re4 80. Ra5 Kh5 81. Rb5 Re3+ 82. Kh2 h3 83. Rb8 Kh4 84. Rh8+ Kg4 85. Ra8 Re2+ 86. Kh1 Kh4 87. Ra4+ g4 88. Ra3 Re1+ 0-1

[Event "1st Irena Warakomska Memorial"]
[Site "Suwalki"]
[Date "2017.08.17"]
[Round "8"]
[White "Stoma, Pawel"]
[Black "Jaroch, Karol"]
[Result "1-0"]
[ECO "C00"]
[WhiteElo "2348"]
[BlackElo "2235"]
[Annotator "NA"]
[PlyCount "87"]
[EventDate "2017.??.??"]
[EventType "swiss"]
[EventCountry "POL"]
[SourceTitle "playchess.com"]
[Source "ChessBase"]
[SourceQuality "1"]
[TimeControl "40/5400+30:1800+30"]

1. e4 {[%emt 0:00:00]} e6 {[%emt 0:00:01]} 2. d3 {[%emt 0:00:00]} d5 {[%emt 0:00:06]} 3. Nd2 {[%emt 0:00:00]} c5 {[%emt 0:00:04]} 4. Ngf3 {[%emt 0:00:06]} Nc6 {[%emt 0:00:14]} 5. Be2 {[%emt 0:00:15]} Nf6 {[%emt 0:00:10]} 6. O-O {[%emt 0:00:07]} Be7 {[%emt 0:02:18]} 7. Re1 {[%emt 0:00:21]} O-O {[%emt 0:01:00]} 8. Bf1 {[%emt 0:00:09]} b5 {[%emt 0:05:10]} 9. g3 {[%emt 0:07:52]} Qb6 {[%emt 0:10:28]} 10. Bg2 {[%emt 0:03:53]} dxe4 {[%emt 0:17:18]} 11. dxe4 {[%emt 0:00:52]} e5 {[%emt 0:00:34]} 12. a4 {[%emt 0:01:01]} b4 {[%emt 0:14:45]} 13. Nc4 {[%emt 0:10:17]} Qc7 {[%emt 0:08:09]} 14. Bg5 {[%emt 0:01:12]} Rd8 {[%emt 0:01:31]} 15. Nfd2 {[%emt 0:02:00]} Ne8 {[%emt 0:06:03]} 16. Bxe7 {[%emt 0:06:56]} Nxe7 {[%emt 0:00:17]} 17. c3 {[%emt 0:01:49]} Be6 {[%emt 0:00:34]} 18. Qc2 {[%emt 0:01:25]} Rab8 {[%emt 0:00:51]} 19. Rad1 {[%emt 0:03:33]} f6 {[%emt 0:00:13]} 20. Bf1 {[%emt 0:02:10]} Qc6 {[%emt 0:07:02]} 21. Na5 {[%emt 0:04:50]} Qb6 {[%emt 0:00:17]} 22. Bc4 {[%emt 0:02:32]} Nc7 {[%emt 0:00:20]} 23. Bxe6+ {[%emt 0:01:52]} Nxe6 {[%emt 0:00:23]} 24. Ndc4 {[%emt 0:00:40]} Qc7 {[%emt 0:00:24]} 25. Rxd8+ {[%emt 0:00:22]} Rxd8 {[%emt 0:00:11]} 26. Kg2 {[%emt 0:08:02]} Kf8 {[%emt 0:00:39]} 27. Rd1 {[%emt 0:00:40]} bxc3 {[%emt 0:00:52]} 28. bxc3 {[%emt 0:00:15]} Rxd1 {[%emt 0:00:30]} 29. Qxd1 {[%emt 0:00:03]} Qd8 {[%emt 0:12:30]} 30. Qd6 {[%emt 0:05:34]} Qxd6 {[%emt 0:01:38]} 31. Nxd6 {[%emt 0:00:03]} Ng6 {[%emt 0:01:00]} 32. Nc6 {[%emt 0:07:17]} a6 {[%emt 0:00:17]} 33. Kf3 {[%emt 0:00:03]} Ne7 {[%emt 0:02:19]} 34. Nb8 {[%emt 0:02:18]} a5 {[%emt 0:00:43]} 35. Nd7+ {[%emt 0:00:22]} Kg8 {[%emt 0:00:05]} 36. Ke3 {[%emt 0:00:32]} c4 {[%emt 0:04:53]} 37. Nxc4 {[%emt 0:00:19]} Nc8 {[%emt 0:00:12]} 38. Nxa5 {[%emt 0:03:13]} Kf7 {[%emt 0:00:05]} 39. Nc6 {[%emt 0:00:41]} Nd6 {[%emt 0:03:33]} 40. Nb6 {[%emt 0:00:00]} Nc5 {[%emt 0:00:21]} 41. a5 {[%emt 0:05:13]} Ke6 {[%emt 0:01:55]} 42. Nb4 {[%emt 0:05:39]} Ndxe4 {[%emt 0:01:31]} 43. a6 {[%emt 0:00:38]} Nxa6 {[%emt 0:00:04]} 44. Kxe4 {[%emt 0:00:10]} 1-0

[Event "1st Irena Warakomska Memorial"]
[Site "Suwalki"]
[Date "2017.08.17"]
[Round "8"]
[White "Szustakowski, Antoni"]
[Black "Teclaf, Pawel"]
[Result "1/2-1/2"]
[ECO "A40"]
[WhiteElo "2235"]
[BlackElo "2373"]
[Annotator "NA"]
[PlyCount "85"]
[EventDate "2017.??.??"]
[EventType "swiss"]
[EventCountry "POL"]
[SourceTitle "playchess.com"]
[Source "ChessBase"]
[SourceQuality "1"]
[TimeControl "40/5400+30:1800+30"]

1. d4 {[%emt 0:00:00]} e6 {[%emt 0:00:14]} 2. c4 {[%emt 0:00:00]} b6 {[%emt 0:00:04]} 3. e4 {[%emt 0:00:04]} Bb7 {[%emt 0:00:05]} 4. Bd3 {[%emt 0:00:09]} Nc6 {[%emt 0:00:16]} 5. Ne2 {[%emt 0:11:17]} Nb4 {[%emt 0:00:18]} 6. Nbc3 {[%emt 0:02:22]} Nxd3+ {[%emt 0:00:43]} 7. Qxd3 {[%emt 0:00:02]} Ne7 {[%emt 0:05:09]} 8. d5 {[%emt 0:13:55]} Ng6 {[%emt 0:05:52]} 9. f4 {[%emt 0:07:29]} Bc5 {[%emt 0:05:47]} 10. Be3 {[%emt 0:05:08]} exd5 {[%emt 0:13:39]} 11. cxd5 {[%emt 0:09:05]} Ba6 {[%emt 0:03:55]} 12. Qxa6 {[%emt 0:07:51]} Bxe3 {[%emt 0:00:11]} 13. g3 {[%emt 0:00:06]} Bc5 {[%emt 0:16:48]} 14. O-O-O {[%emt 0:05:14]} Ne7 {[%emt 0:09:31]} 15. Qd3 {[%emt 0:06:33]} O-O {[%emt 0:01:21]} 16. g4 {[%emt 0:04:03]} d6 {[%emt 0:01:11]} 17. f5 {[%emt 0:01:38]} c6 {[%emt 0:02:14]} 18. Nf4 {[%emt 0:02:52]} cxd5 {[%emt 0:00:43]} 19. exd5 {[%emt 0:00:29]} Re8 {[%emt 0:03:12]} 20. Ne4 {[%emt 0:04:49]} Qc8 {[%emt 0:02:11]} 21. Kb1 {[%emt 0:01:02]} Nxf5 {[%emt 0:01:25]} 22. gxf5 {[%emt 0:00:12]} Qxf5 {[%emt 0:00:08]} 23. Nxc5 {[%emt 0:00:01]} Qxf4 {[%emt 0:00:05]} 24. Nb3 {[%emt 0:00:42]} Re3 {[%emt 0:00:22]} 25. Qc2 {[%emt 0:01:54]} Rae8 {[%emt 0:01:28]} 26. Nc1 {[%emt 0:01:54]} Qe5 {[%emt 0:02:23]} 27. Rd3 {[%emt 0:02:38]} Rxd3 {[%emt 0:00:36]} 28. Qxd3 {[%emt 0:00:24]} f5 {[%emt 0:00:10]} 29. Rf1 {[%emt 0:02:13]} g6 {[%emt 0:00:35]} 30. Rf2 {[%emt 0:04:28]} Rc8 {[%emt 0:00:04]} 31. Re2 {[%emt 0:01:00]} Qf4 {[%emt 0:00:29]} 32. Qd2 {[%emt 0:01:34]} Qf3 {[%emt 0:00:24]} 33. Re7 {[%emt 0:01:26]} Kf8 {[%emt 0:01:33]} 34. Qg5 {[%emt 0:02:50]} Rxc1+ {[%emt 0:01:40]} 35. Kxc1 {[%emt 0:00:00]} Qh1+ {[%emt 0:00:10]} 36. Kd2 {[%emt 0:00:37]} Qxd5+ {[%emt 0:00:06]} 37. Ke2 {[%emt 0:01:31]} Qc4+ {[%emt 0:00:05]} 38. Kf2 {[%emt 0:00:42]} Qd4+ {[%emt 0:00:04]} 39. Kg2 {[%emt 0:00:38]} h6 {[%emt 0:01:41]} 40. Qe3 {[%emt 0:00:00]} Qg4+ {[%emt 0:00:04]} 41. Kf1 {[%emt 0:02:09]} Qc4+ {[%emt 0:01:51]} 42. Kg1 {[%emt 0:05:07]} Qg4+ {[%emt 0:00:06]} 43. Kf1 {[%emt 0:00:22]} 1/2-1/2

[Event "1st Irena Warakomska Memorial"]
[Site "Suwalki"]
[Date "2017.08.17"]
[Round "8"]
[White "Czerw, Dawid"]
[Black "Czerwonski, Aleksander"]
[Result "1/2-1/2"]
[ECO "E04"]
[WhiteElo "2222"]
[BlackElo "2392"]
[Annotator "NA"]
[PlyCount "56"]
[EventDate "2017.??.??"]
[EventType "swiss"]
[EventCountry "POL"]
[SourceTitle "playchess.com"]
[Source "ChessBase"]
[SourceQuality "1"]
[TimeControl "40/5400+30:1800+30"]

1. d4 {[%emt 0:00:00]} Nf6 {[%emt 0:00:11]} 2. c4 {[%emt 0:00:00]} e6 {[%emt 0:00:21]} 3. Nf3 {[%emt 0:00:00]} d5 {[%emt 0:02:01]} 4. g3 {[%emt 0:00:17]} dxc4 {[%emt 0:00:58]} 5. Bg2 {[%emt 0:00:58]} c5 {[%emt 0:01:06]} 6. O-O {[%emt 0:01:11]} Nc6 {[%emt 0:00:34]} 7. dxc5 {[%emt 0:08:47]} Qxd1 {[%emt 0:04:20]} 8. Rxd1 {[%emt 0:00:05]} Bxc5 {[%emt 0:00:19]} 9. Nbd2 {[%emt 0:00:20]} c3 {[%emt 0:14:17]} 10. bxc3 {[%emt 0:00:05]} O-O {[%emt 0:00:15]} 11. Nb3 {[%emt 0:03:05]} Be7 {[%emt 0:01:27]} 12. Nfd4 {[%emt 0:01:53]} Bd7 {[%emt 0:04:46]} 13. Nxc6 {[%emt 0:03:23]} Bxc6 {[%emt 0:02:01]} 14. Bxc6 {[%emt 0:00:05]} bxc6 {[%emt 0:00:01]} 15. c4 {[%emt 0:01:13]} Ne4 {[%emt 0:12:31]} 16. Bb2 {[%emt 0:05:59]} a5 {[%emt 0:11:48]} 17. f3 {[%emt 0:03:09]} Nd6 {[%emt 0:01:22]} 18. Ba3 {[%emt 0:02:45]} a4 {[%emt 0:02:09]} 19. Bxd6 {[%emt 0:18:19]} Bxd6 {[%emt 0:00:31]} 20. Rxd6 {[%emt 0:00:23]} axb3 {[%emt 0:00:10]} 21. Rxc6 {[%emt 0:00:44]} Rfb8 {[%emt 0:02:45]} 22. c5 {[%emt 0:11:43]} Rxa2 {[%emt 0:17:59]} 23. Rb1 {[%emt 0:00:07]} g5 {[%emt 0:00:07]} 24. Rb6 {[%emt 0:05:43]} Rc8 {[%emt 0:02:42]} 25. R6xb3 {[%emt 0:02:21]} Rxe2 {[%emt 0:01:23]} 26. Rc3 {[%emt 0:03:17]} Rd8 {[%emt 0:04:36]} 27. c6 {[%emt 0:01:23]} Rdd2 {[%emt 0:00:15]} 28. c7 {[%emt 0:00:10]} Rg2+ 1/2-1/2